fUST/lending_fUST_20250809
["ID","MTS","AMOUNT","RATE_DAILY","PERIOD"]
[378076284,1754717449173,-727.66,0.00022191,2]
[378076285,1754717449182,-460.0,0.00022191,2]
[378076286,1754717449192,-464.63929681,0.00022191,2]
[378076287,1754717449201,-460.0,0.00022191,2]
[378076288,1754717449211,-460.0,0.00022191,2]
[378076289,1754717449220,-460.0,0.00022191,2]
[378076290,1754717449230,-460.0,0.00022191,2]
[378076291,1754717449242,-5453.14,0.00022191,2]
[378076292,1754717449251,-460.0,0.00022191,2]
[378076293,1754717449260,-461.15573356,0.00022191,2]
[378076294,1754717449270,-460.0,0.00022191,2]
[378076295,1754717449280,-460.0,0.00022191,2]
[378076296,1754717449289,-460.0,0.00022191,2]
[378076297,1754717449299,-460.0,0.00022191,2]
[378076298,1754717449314,-460.0,0.00022191,2]
[378076299,1754717449324,-2213.25,0.00022191,2]
[378076300,1754717449333,-460.0,0.00022191,2]
[378076301,1754717449343,-465.67144333,0.00022191,2]
[378076302,1754717449352,-2392.79,0.00022191,2]
[378076303,1754717449361,-1847.54,0.00022191,2]
[378076304,1754717449371,-460.0,0.00022191,2]
[378076305,1754717449380,-460.0,0.00022191,2]
[378076306,1754717449390,-460.0,0.00022191,2]
[378076307,1754717449400,-786.49,0.00022191,2]
[378076308,1754717449411,-460.0,0.00022191,2]
[378076309,1754717449420,-460.0,0.00022191,2]
[378076310,1754717449429,-460.0,0.00022191,2]
[378076311,1754717449439,-460.0,0.00022191,2]
[378076312,1754717449449,-462.90429166,0.00022191,2]
[378076313,1754717449458,-460.0,0.00022191,2]
[378076314,1754717449468,-915.76,0.00022191,2]
[378076315,1754717449479,-463.19629191,0.00022191,2]
[378076316,1754717449488,-504.60118821,0.00022191,2]
[378076317,1754717449499,-460.0,0.00022191,2]
[378076318,1754717449509,-460.0,0.00022191,2]
[378076319,1754717449523,-466.57,0.00022191,2]
[378076320,1754717449533,-460.0,0.00022191,2]
[378076321,1754717449543,-460.0,0.00022191,2]
[378076322,1754717449551,-542.22,0.00022191,2]
[378076323,1754717449562,-460.0,0.00022191,2]
[378076324,1754717449571,-533.05,0.00022191,2]
[378076325,1754717449788,-460.0,0.00022191,2]
[378076326,1754717449798,-465.22593109,0.00022191,2]
[378076327,1754717449809,-557.41,0.00022191,2]
[378076328,1754717449818,-460.0,0.00022191,2]
[378076329,1754717449827,-460.0,0.00022191,2]
[378076330,1754717449837,-460.0,0.00022191,2]
[378076331,1754717449846,-460.0,0.00022191,2]
[378076332,1754717449856,-460.0,0.00022191,2]
[378076333,1754717449865,-460.0,0.00022191,2]
[378076334,1754717449874,-460.0,0.00022191,2]
[378076335,1754717449884,-460.0,0.00022191,2]
[378076336,1754717449893,-1807.89,0.00022191,2]
[378076337,1754717449902,-460.0,0.00022191,2]
[378076338,1754717449912,-460.0,0.00022191,2]
[378076339,1754717449921,-460.0,0.00022191,2]
[378076340,1754717449930,-460.0,0.00022191,2]
[378076341,1754717449940,-460.0,0.00022191,2]
[378076342,1754717449949,-1773.57,0.00022191,2]
[378076343,1754717449958,-460.0,0.00022191,2]
[378076344,1754717449969,-1299.54,0.00022191,2]
[378076345,1754717449984,-460.0,0.00022191,2]
[378076346,1754717449999,-460.0,0.00022191,2]
[378076347,1754717450009,-460.0,0.00022191,2]
[378076348,1754717450018,-462.54034901,0.00022191,2]
[378076349,1754717450031,-231.77812507,0.00022191,2]
[378076350,1754717450040,-460.0,0.00022191,2]
[378076351,1754717450049,-460.0,0.00022191,2]
[378076352,1754717450060,-726.66,0.00022191,2]
[378076353,1754717450069,-461.16109151,0.00022191,2]
[378076354,1754717450078,-460.0,0.00022191,2]
[378076355,1754717450087,-649.7,0.00022191,2]
[378076356,1754717450097,-460.0,0.00022191,2]
[378076357,1754717450107,-1110.73,0.00022191,2]
[378076358,1754717450117,-460.0,0.00022191,2]
[378076359,1754717450127,-460.0,0.00022191,2]
[378076360,1754717450137,-1447.77,0.00022191,2]
[378076361,1754717450146,-971.96,0.00022191,2]
[378076362,1754717450155,-460.0,0.00022191,2]
[378076363,1754717450167,-460.0,0.00022191,2]
[378076364,1754717450177,-460.0,0.00022191,2]
[378076365,1754717450187,-500.75,0.00022191,2]
[378076366,1754717450197,-460.0,0.00022191,2]
[378076367,1754717450207,-460.0,0.00022191,2]
[378076368,1754717450216,-460.0,0.00022191,2]
[378076369,1754717450225,-463.33824084,0.00022191,2]
[378076370,1754717450234,-466.81628277,0.00022191,2]
[378076371,1754717450243,-460.0,0.00022191,2]
[378076372,1754717450253,-460.0,0.00022191,2]
[378076373,1754717450262,-460.0,0.00022191,2]
[378076374,1754717450273,-460.0,0.00022191,2]
[378076375,1754717450283,-460.0,0.00022191,2]
[378076376,1754717450293,-460.0,0.00022191,2]
[378076377,1754717450375,-462.42586638,0.00022191,2]
[378076378,1754717450385,-462.97797273,0.00022191,2]
[378076379,1754717450395,-460.0,0.00022191,2]
[378076380,1754717450406,-460.0,0.00022191,2]
[378076381,1754717450416,-460.0,0.00022191,2]
[378076382,1754717450428,-460.0,0.00022191,2]
[378076383,1754717450439,-460.0,0.00022191,2]
[378076384,1754717450453,-460.0,0.00022191,2]
[378076385,1754717450465,-460.0,0.00022191,2]
[378076386,1754717450475,-460.0,0.00022191,2]
[378076387,1754717450484,-460.0,0.00022191,2]
[378076388,1754717450495,-460.0,0.00022191,2]
[378076389,1754717450504,-460.0,0.00022191,2]
[378076390,1754717450515,-460.0,0.00022191,2]
[378076391,1754717450527,-672.29,0.00022191,2]
[378076392,1754717450536,-460.0,0.00022191,2]
[378076393,1754717450546,-1699.23,0.00022191,2]
[378076394,1754717450556,-463.11747375,0.00022191,2]
[378076395,1754717450565,-460.0,0.00022191,2]
[378076396,1754717450575,-460.0,0.00022191,2]
[378076397,1754717450586,-460.0,0.00022191,2]
[378076398,1754717450600,-463.42231626,0.00022191,2]
[378076399,1754717450609,-463.12660417,0.00022191,2]
[378076400,1754717450619,-520.08,0.00022191,2]
[378076401,1754717450629,-460.0,0.00022191,2]
[378076402,1754717450638,-460.0,0.00022191,2]
[378076403,1754717450647,-3585.3,0.00022191,2]
[378076404,1754717450656,-889.0,0.00022191,2]
[378076405,1754717450670,-460.0,0.00022191,2]
[378076406,1754717450679,-463.4673868,0.00022191,2]
[378076407,1754717450688,-607.44,0.00022191,2]
[378076408,1754717450697,-460.0,0.00022191,2]
[378076409,1754717450706,-461.39727857,0.00022191,2]
[378076410,1754717450716,-460.0,0.00022191,2]
[378076411,1754717450726,-460.0,0.00022191,2]
[378076412,1754717450737,-460.0,0.00022191,2]
[378076413,1754717450749,-520.64,0.00022191,2]
[378076414,1754717450758,-151.0,0.000222,8]
[378076415,1754717450768,-474.0,0.00022269,2]
[378076416,1754717450778,-500.0,0.00022289,2]
[378076417,1754717450787,-151.0,0.000223,6]
[378076418,1754717450797,-151.0,0.000223,5]
[378076419,1754717450808,-151.0,0.000223,8]
[378076420,1754717450818,-13656.34279837,0.00022371,2]
[378076421,1754717450827,-1000.0,0.00022421,2]
[378076422,1754717450837,-1000.0,0.00022421,2]
[378076423,1754717450846,-502.53893451,0.00022421,2]
[378076424,1754717450856,-506.10857676,0.00022421,2]
[378076425,1754717450865,-1000.0,0.00022421,2]
[378076426,1754717450875,-1000.0,0.00022421,2]
[378076427,1754717450884,-1000.0,0.00022421,2]
[378076428,1754717450901,-295.58083078,0.00022421,2]
[378076429,1754717450916,-1000.0,0.00022421,2]
[378076430,1754717450926,-1000.0,0.00022421,2]
[378076431,1754717450935,-501.45494386,0.00022421,2]
[378076432,1754717450944,-1013.58874251,0.00022421,2]
[378076433,1754717450954,-1000.0,0.00022421,2]
[378076434,1754717450963,-254.18695944,0.00022421,2]
[378076435,1754717450972,-488.74168159,0.00022421,2]
[378076436,1754717450985,-1000.0,0.00022421,2]
[378076437,1754717450994,-1000.0,0.00022421,2]
[378076438,1754717451003,-1000.0,0.00022421,2]
[378076439,1754717451013,-500.87294392,0.00022421,2]
[378076440,1754717451022,-1000.0,0.00022421,2]
[378076441,1754717451034,-1000.0,0.00022421,2]
[378076442,1754717451043,-1000.0,0.00022421,2]
[378076443,1754717451052,-501.59978223,0.00022421,2]
[378076444,1754717451062,-206.06524216,0.00022421,2]
[378076445,1754717451071,-506.86097359,0.00022421,2]
[378076446,1754717451080,-1000.0,0.00022421,2]
[378076447,1754717451090,-1003.34323354,0.00022421,2]
[378076448,1754717451099,-578.98598067,0.00022421,2]
[378076449,1754717451109,-1000.0,0.00022421,2]
[378076450,1754717451119,-1000.0,0.00022421,2]
[378076451,1754717451129,-1000.0,0.00022421,2]
[378076452,1754717451139,-460.0,0.00022465,2]
[378076453,1754717451150,-460.0,0.00022465,2]
[378076454,1754717451161,-460.0,0.00022465,2]
[378076455,1754717451171,-460.0,0.00022465,2]
[378076456,1754717451180,-460.0,0.00022465,2]
[378076457,1754717451189,-540.5,0.00022465,2]
[378076458,1754717451198,-460.0,0.00022465,2]
[378076459,1754717451207,-460.0,0.00022465,2]
[378076460,1754717451217,-460.0,0.00022465,2]
[378076461,1754717451226,-468.1659015,0.00022465,2]
[378076462,1754717451235,-460.0,0.00022465,2]
[378076463,1754717451244,-460.0,0.00022465,2]
[378076464,1754717451254,-460.0,0.00022465,2]
[378076465,1754717451263,-460.0,0.00022465,2]
[378076466,1754717451272,-460.0,0.00022465,2]
[378076467,1754717451281,-460.0,0.00022465,2]
[378076468,1754717451291,-395.53081332,0.00022465,2]
[378076469,1754717451300,-572.02118113,0.00022465,2]
[378076470,1754717451310,-450.0,0.00022465,2]
[378076471,1754717451319,-460.0,0.00022465,2]
[378076472,1754717451329,-460.0,0.00022465,2]
[378076473,1754717451338,-460.0,0.00022465,2]
[378076474,1754717451347,-460.0,0.00022465,2]
[378076475,1754717451357,-460.0,0.00022465,2]
[378076476,1754717451366,-460.0,0.00022465,2]
[378076477,1754717451375,-464.94717827,0.00022465,2]
[378076478,1754717451384,-460.0,0.00022465,2]
[378076479,1754717451394,-466.94468461,0.00022465,2]
[378076480,1754717451403,-460.0,0.00022465,2]
[378076481,1754717451413,-365.76246316,0.00022465,2]
[378076482,1754717451423,-632.83,0.00022465,2]
[378076483,1754717451433,-460.0,0.00022465,2]
[378076484,1754717451450,-460.0,0.00022465,2]
[378076485,1754717451460,-460.0,0.00022465,2]
[378076486,1754717451470,-460.0,0.00022465,2]
[378076487,1754717451479,-460.0,0.00022465,2]
[378076488,1754717451487,-460.0,0.00022465,2]
[378076489,1754717451496,-460.0,0.00022465,2]
[378076490,1754717451506,-460.0,0.00022465,2]
[378076491,1754717451517,-469.75337946,0.00022465,2]
[378076492,1754717451528,-460.0,0.00022465,2]
[378076493,1754717451538,-460.0,0.00022465,2]
[378076494,1754717451547,-225.26124507,0.00022465,2]
[378076495,1754717451557,-460.0,0.00022465,2]
[378076496,1754717451566,-460.0,0.00022465,2]
[378076497,1754717451576,-460.0,0.00022465,2]
[378076498,1754717451656,-460.0,0.00022465,2]
[378076499,1754717451665,-460.0,0.00022465,2]
[378076500,1754717451675,-460.0,0.00022465,2]
[378076501,1754717451685,-460.0,0.00022465,2]
[378076502,1754717451696,-460.0,0.00022465,2]
[378076503,1754717451705,-460.0,0.00022465,2]
[378076504,1754717451715,-460.0,0.00022465,2]
[378076505,1754717451725,-467.83166063,0.00022465,2]
[378076506,1754717451735,-460.0,0.00022465,2]
[378076507,1754717451744,-460.0,0.00022465,2]
[378076508,1754717451754,-557.1359945,0.00022465,2]
[378076509,1754717451763,-748.0,0.00022465,2]
[378076510,1754717451773,-460.0,0.00022465,2]
[378076511,1754717451782,-460.0,0.00022465,2]
[378076512,1754717451792,-503.24,0.00022465,2]
[378076513,1754717451801,-476.94476119,0.00022465,2]
[378076514,1754717451813,-460.0,0.00022465,2]
[378076515,1754717451822,-460.0,0.00022465,2]
[378076516,1754717451831,-460.0,0.00022465,2]
[378076517,1754717451842,-460.0,0.00022465,2]
[378076518,1754717451852,-460.0,0.00022465,2]
[378076519,1754717451861,-460.0,0.00022465,2]
[378076520,1754717451871,-460.0,0.00022465,2]
[378076521,1754717451880,-460.0,0.00022465,2]
[378076522,1754717451889,-872.77,0.00022465,2]
[378076523,1754717451899,-460.0,0.00022465,2]
[378076524,1754717451908,-468.18629682,0.00022465,2]
[378076525,1754717451918,-460.0,0.00022465,2]
[378076526,1754717451927,-460.0,0.00022465,2]
[378076527,1754717451938,-460.0,0.00022465,2]
[378076528,1754717451947,-554.97238259,0.00022465,2]
[378076529,1754717451956,-623.59,0.00022465,2]
[378076530,1754717451966,-460.0,0.00022465,2]
[378076531,1754717451976,-460.0,0.00022465,2]
[378076532,1754717451986,-460.0,0.00022465,2]
[378076533,1754717451996,-460.0,0.00022465,2]
[378076534,1754717452007,-460.0,0.00022465,2]
[378076535,1754717452017,-460.0,0.00022465,2]
[378076536,1754717452026,-460.0,0.00022465,2]
[378076537,1754717452036,-460.0,0.00022465,2]
[378076538,1754717452046,-460.0,0.00022465,2]
[378076539,1754717452055,-460.0,0.00022465,2]
[378076540,1754717452065,-460.0,0.00022465,2]
[378076541,1754717452074,-460.0,0.00022465,2]
[378076542,1754717452084,-460.0,0.00022465,2]
[378076543,1754717452093,-460.0,0.00022465,2]
[378076544,1754717452103,-460.0,0.00022465,2]
[378076545,1754717452113,-460.0,0.00022465,2]
[378076546,1754717452122,-460.0,0.00022465,2]
[378076547,1754717452131,-460.0,0.00022465,2]
[378076548,1754717452140,-460.0,0.00022465,2]
[378076549,1754717452149,-460.0,0.00022465,2]
[378076550,1754717452159,-460.0,0.00022465,2]
[378076551,1754717452168,-460.0,0.00022465,2]
[378076552,1754717452178,-460.0,0.00022465,2]
[378076553,1754717452187,-460.0,0.00022465,2]
[378076554,1754717452197,-460.0,0.00022465,2]
[378076555,1754717452207,-460.0,0.00022465,2]
[378076556,1754717452216,-463.67165792,0.00022465,2]
[378076557,1754717452225,-481.14,0.00022465,2]
[378076558,1754717452234,-1328.21,0.00022465,2]
[378076559,1754717452244,-460.0,0.00022465,2]
[378076560,1754717452253,-460.0,0.00022465,2]
[378076561,1754717452262,-1419.17,0.00022465,2]
[378076562,1754717452272,-460.0,0.00022465,2]
[378076563,1754717452281,-548.91,0.00022465,2]
[378076564,1754717452290,-460.0,0.00022465,2]
[378076565,1754717452299,-460.0,0.00022465,2]
[378076566,1754717452309,-460.0,0.00022465,2]
[378076567,1754717452318,-460.0,0.00022465,2]
[378076568,1754717452327,-460.0,0.00022465,2]
[378076569,1754717452336,-460.0,0.00022465,2]
[378076570,1754717452345,-460.0,0.00022465,2]
[378076571,1754717452354,-460.0,0.00022465,2]
[378076572,1754717452363,-460.0,0.00022465,2]
[378076573,1754717452372,-460.0,0.00022465,2]
[378076574,1754717452381,-460.0,0.00022465,2]
[378076575,1754717452391,-460.0,0.00022465,2]
[378076576,1754717452400,-460.0,0.00022465,2]
[378076577,1754717452409,-460.0,0.00022465,2]
[378076578,1754717452418,-1181.72,0.00022465,2]
[378076579,1754717452427,-460.0,0.00022465,2]
[378076580,1754717452436,-460.0,0.00022465,2]
[378076581,1754717452446,-357.69619502,0.00022465,2]
[378076582,1754717452454,-460.0,0.00022465,2]
[378076583,1754717452464,-813.16,0.00022465,2]
[378076584,1754717452473,-460.0,0.00022465,2]
[378076585,1754717452483,-460.0,0.00022465,2]
[378076586,1754717452493,-460.0,0.00022465,2]
[378076587,1754717452503,-460.0,0.00022465,2]
[378076588,1754717452512,-460.0,0.00022465,2]
[378076589,1754717452523,-460.0,0.00022465,2]
[378076590,1754717452532,-460.0,0.00022465,2]
[378076591,1754717452542,-460.0,0.00022465,2]
[378076592,1754717452551,-622.45,0.00022465,2]
[378076593,1754717452563,-1619.97,0.00022465,2]
[378076594,1754717452572,-779.99,0.00022465,2]
[378076595,1754717452581,-460.0,0.00022465,2]
[378076596,1754717452591,-460.0,0.00022465,2]
[378076597,1754717452601,-460.0,0.00022465,2]
[378076598,1754717452612,-1148.8,0.00022465,2]
[378076599,1754717452622,-460.0,0.00022465,2]
[378076600,1754717452631,-460.0,0.00022465,2]
[378076601,1754717452642,-460.0,0.00022465,2]
[378076602,1754717452652,-1244.78,0.00022465,2]
[378076603,1754717452662,-460.0,0.00022465,2]
[378076604,1754717452671,-2519.37,0.00022465,2]
[378076605,1754717452681,-460.0,0.00022465,2]
[378076606,1754717452691,-503.86,0.00022465,2]
[378076607,1754717452700,-638.61,0.00022465,2]
[378076608,1754717452713,-603.35,0.00022465,2]
[378076609,1754717452722,-710.26,0.00022465,2]
[378076610,1754717452799,-460.0,0.00022465,2]
[378076611,1754717452810,-460.0,0.00022465,2]
[378076612,1754717452819,-460.0,0.00022465,2]
[378076613,1754717452829,-460.0,0.00022465,2]
[378076614,1754717452838,-460.0,0.00022465,2]
[378076615,1754717452848,-727.66,0.00022465,2]
[378076616,1754717452857,-460.0,0.00022465,2]
[378076617,1754717452866,-460.0,0.00022465,2]
[378076618,1754717452876,-460.0,0.00022465,2]
[378076619,1754717452885,-460.0,0.00022465,2]
[378076620,1754717452895,-460.0,0.00022465,2]
[378076621,1754717452904,-5453.14,0.00022465,2]
[378076622,1754717452914,-460.0,0.00022465,2]
[378076623,1754717452924,-238.69842187,0.00022465,2]
[378076624,1754717452934,-460.0,0.00022465,2]
[378076625,1754717452943,-460.0,0.00022465,2]
[378076626,1754717452953,-460.0,0.00022465,2]
[378076627,1754717452963,-463.93041204,0.00022465,2]
[378076628,1754717452973,-2213.25,0.00022465,2]
[378076629,1754717452983,-460.0,0.00022465,2]
[378076630,1754717452993,-2392.79,0.00022465,2]
[378076631,1754717453002,-1847.54,0.00022465,2]
[378076632,1754717453012,-546.17744632,0.00022465,2]
[378076633,1754717453022,-464.7038424,0.00022465,2]
[378076634,1754717453032,-786.49,0.00022465,2]
[378076635,1754717453041,-460.0,0.00022465,2]
[378076636,1754717453050,-460.0,0.00022465,2]
[378076637,1754717453062,-460.0,0.00022465,2]
[378076638,1754717453071,-460.0,0.00022465,2]
[378076639,1754717453081,-460.0,0.00022465,2]
[378076640,1754717453090,-915.76,0.00022465,2]
[378076641,1754717453100,-151.0,0.00022465,7]
[378076642,1754717453109,-460.0,0.00022465,2]
[378076643,1754717453118,-466.57,0.00022465,2]
[378076644,1754717453127,-460.0,0.00022465,2]
[378076645,1754717453137,-460.0,0.00022465,2]
[378076646,1754717453146,-542.22,0.00022465,2]
[378076647,1754717453156,-533.05,0.00022465,2]
[378076648,1754717453165,-460.0,0.00022465,2]
[378076649,1754717453174,-557.41,0.00022465,2]
[378076650,1754717453183,-460.0,0.00022465,2]
[378076651,1754717453193,-151.0,0.00022465,7]
[378076652,1754717453202,-460.0,0.00022465,2]
[378076653,1754717453211,-460.0,0.00022465,2]
[378076654,1754717453221,-460.0,0.00022465,2]
[378076655,1754717453230,-460.0,0.00022465,2]
[378076656,1754717453239,-460.0,0.00022465,2]
[378076657,1754717453248,-460.0,0.00022465,2]
[378076658,1754717453257,-460.0,0.00022465,2]
[378076659,1754717453267,-1807.89,0.00022465,2]
[378076660,1754717453276,-460.0,0.00022465,2]
[378076661,1754717453285,-460.0,0.00022465,2]
[378076662,1754717453308,-460.0,0.00022465,2]
[378076663,1754717453324,-417.54688206,0.00022465,2]
[378076664,1754717453344,-460.0,0.00022465,2]
[378076665,1754717453365,-1773.57,0.00022465,2]
[378076666,1754717453383,-460.0,0.00022465,2]
[378076667,1754717453400,-1299.54,0.00022465,2]
[378076668,1754717453418,-460.0,0.00022465,2]
[378076669,1754717453433,-460.0,0.00022465,2]
[378076670,1754717453450,-464.14082523,0.00022465,2]
[378076671,1754717453469,-460.0,0.00022465,2]
[378076672,1754717453489,-460.0,0.00022465,2]
[378076673,1754717453503,-726.66,0.00022465,2]
[378076674,1754717453522,-221.28019452,0.00022465,2]
[378076675,1754717453537,-649.7,0.00022465,2]
[378076676,1754717453552,-460.0,0.00022465,2]
[378076677,1754717453566,-1110.73,0.00022465,2]
[378076678,1754717453582,-460.0,0.00022465,2]
[378076679,1754717453596,-196.0764329,0.00022465,2]
[378076680,1754717453611,-1447.77,0.00022465,2]
[378076681,1754717453626,-971.96,0.00022465,2]
[378076682,1754717453641,-460.0,0.00022465,2]
[378076683,1754717453656,-452.0209369,0.00022465,2]
[378076684,1754717453672,-460.0,0.00022465,2]
[378076685,1754717453686,-500.75,0.00022465,2]
[378076686,1754717453701,-460.0,0.00022465,2]
[378076687,1754717453715,-460.0,0.00022465,2]
[378076688,1754717453729,-461.2065651,0.00022465,2]
[378076689,1754717453744,-460.0,0.00022465,2]
[378076690,1754717453758,-460.0,0.00022465,2]
[378076691,1754717453772,-460.0,0.00022465,2]
[378076692,1754717453787,-460.0,0.00022465,2]
[378076693,1754717453801,-460.0,0.00022465,2]
[378076694,1754717453816,-460.0,0.00022465,2]
[378076695,1754717453831,-460.0,0.00022465,2]
[378076696,1754717453846,-460.0,0.00022465,2]
[378076697,1754717453861,-460.0,0.00022465,2]
[378076698,1754717453876,-463.64663747,0.00022465,2]
[378076699,1754717453892,-408.14695532,0.00022465,2]
[378076700,1754717453907,-460.0,0.00022465,2]
[378076701,1754717453922,-460.0,0.00022465,2]
[378076702,1754717453937,-460.0,0.00022465,2]
[378076703,1754717453950,-460.0,0.00022465,2]
[378076704,1754717453965,-460.0,0.00022465,2]
[378076705,1754717453978,-460.0,0.00022465,2]
[378076706,1754717453993,-151.0,0.00022465,7]
[378076707,1754717454008,-672.29,0.00022465,2]
[378076708,1754717454023,-460.0,0.00022465,2]
[378076709,1754717454037,-1699.23,0.00022465,2]
[378076710,1754717454053,-460.0,0.00022465,2]
[378076711,1754717454068,-460.0,0.00022465,2]
[378076712,1754717454083,-454.01477649,0.00022465,2]
[378076713,1754717454195,-520.08,0.00022465,2]
[378076714,1754717454207,-460.0,0.00022465,2]
[378076715,1754717454218,-460.0,0.00022465,2]
[378076716,1754717454228,-3585.3,0.00022465,2]
[378076717,1754717454237,-889.0,0.00022465,2]
[378076718,1754717454247,-607.44,0.00022465,2]
[378076719,1754717454256,-460.0,0.00022465,2]
[378076720,1754717454267,-500.07924969,0.00022465,2]
[378076721,1754717454276,-460.0,0.00022465,2]
[378076722,1754717454286,-500.26258628,0.00022473,2]
[378076723,1754717454296,-500.0,0.00022473,2]
[378076724,1754717454305,-500.0,0.00022473,2]
[378076725,1754717454318,-500.0,0.00022473,2]
[378076726,1754717454327,-150.0,0.00022473,2]
[378076727,1754717454337,-500.0,0.00022473,2]
[378076728,1754717454346,-151.0,0.00022473,7]
[378076729,1754717454355,-151.0,0.00022473,7]
[378076730,1754717454365,-151.0,0.00022473,7]
[378076731,1754717454374,-151.0,0.00022473,7]
[378076732,1754717454383,-1000.0,0.00022521,2]
[378076733,1754717454393,-1000.0,0.00022521,2]
[378076734,1754717454402,-1000.0,0.00022521,2]
[378076735,1754717454412,-1000.0,0.00022521,2]
[378076736,1754717454421,-1000.0,0.00022521,2]
[378076737,1754717454431,-1000.0,0.00022521,2]
[378076738,1754717454440,-1000.0,0.00022521,2]
[378076739,1754717454450,-503.13372029,0.00022521,2]
[378076740,1754717454459,-1000.0,0.00022521,2]
[378076741,1754717454469,-894.7992208,0.00022521,2]
[378076742,1754717454478,-1000.0,0.00022521,2]
[378076743,1754717454487,-596.48551058,0.00022521,2]
[378076744,1754717454497,-1000.0,0.00022521,2]
[378076745,1754717454506,-501.36665835,0.00022521,2]
[378076746,1754717454517,-1000.0,0.00022521,2]
[378076747,1754717454528,-1000.0,0.00022521,2]
[378076748,1754717454537,-719.71722395,0.00022521,2]
[378076749,1754717454546,-1000.0,0.00022521,2]
[378076750,1754717454556,-1000.0,0.00022521,2]
[378076751,1754717454567,-1000.0,0.00022521,2]
[378076752,1754717454576,-958.90736978,0.00022521,2]
[378076753,1754717454585,-1000.0,0.00022521,2]
[378076754,1754717454596,-446.95290269,0.00022521,2]
[378076755,1754717454605,-1000.0,0.00022521,2]
[378076756,1754717454615,-1000.0,0.00022521,2]
[378076757,1754717454624,-392.07726344,0.00022521,2]
[378076758,1754717454633,-553.67518927,0.00022521,2]
[378076759,1754717454642,-1000.0,0.00022521,2]
[378076760,1754717454651,-1000.0,0.00022521,2]
[378076761,1754717454660,-1000.0,0.00022521,2]
[378076762,1754717454669,-1000.0,0.00022521,2]
[378076763,1754717454679,-1000.0,0.00022521,2]
[378076764,1754717454689,-1000.0,0.00022521,2]
[378076765,1754717454698,-1000.0,0.00022521,2]
[378076766,1754717454708,-1000.0,0.00022521,2]
[378076767,1754717454717,-1000.0,0.00022521,2]
[378076768,1754717454727,-1000.0,0.00022521,2]
[378076769,1754717454736,-1000.0,0.00022521,2]
[378076770,1754717454746,-1000.0,0.00022521,2]
[378076771,1754717454755,-1000.0,0.00022521,2]
[378076772,1754717454764,-1000.0,0.00022521,2]
[378076773,1754717454774,-1000.0,0.00022521,2]
[378076774,1754717454783,-1000.0,0.00022521,2]
[378076775,1754717454793,-1000.0,0.00022521,2]
[378076776,1754717454803,-649.78876618,0.00022521,2]
[378076777,1754717454814,-505.80135323,0.00022521,2]
[378076778,1754717454823,-1000.0,0.00022521,2]
[378076779,1754717454833,-1000.0,0.00022521,2]
[378076780,1754717454842,-1000.0,0.00022521,2]
[378076781,1754717454851,-1000.0,0.00022521,2]
[378076782,1754717454861,-1000.0,0.00022521,2]
[378076783,1754717454871,-1000.0,0.00022521,2]